[Event "*** Titled Tuesday Blitz"]
[Site "Chess.com"]
[Date "2021.02.09"]
[Round "2"]
[White "jefferyx"]
[Black "Heineccius"]
[Result "1-0"]
[WhiteElo "2991"]
[BlackElo "2572"]
[TimeControl "180+1"]
[EndTime "10:18:22 PST"]
[Termination "jefferyx won by checkmate"]

1. d4 {[%clk 0:03:00.9]} 1... Nf6 {[%clk 0:02:59.7]} 2. c4 {[%clk 0:03:00.8]}
2... e6 {[%clk 0:02:59.9]} 3. Nc3 {[%clk 0:03:01.2]} 3... Bb4 {[%clk 0:02:59]}
4. Nf3 {[%clk 0:03:01.3]} 4... O-O {[%clk 0:02:56.1]} 5. Bg5 {[%clk 0:03:00.2]}
5... h6 {[%clk 0:02:52.7]} 6. Bh4 {[%clk 0:03:00.2]} 6... c5 {[%clk 0:02:48.2]}
7. e3 {[%clk 0:03:00]} 7... Qa5 {[%clk 0:02:35.5]} 8. Bxf6 {[%clk 0:02:51.5]}
8... Bxc3+ {[%clk 0:02:34.3]} 9. bxc3 {[%clk 0:02:52.4]} 9... Qxc3+ {[%clk
0:02:34.5]} 10. Nd2 {[%clk 0:02:52.5]} 10... gxf6 {[%clk 0:02:34.8]} 11. Rc1
{[%clk 0:02:47.2]} 11... Qa3 {[%clk 0:02:29.7]} 12. Ne4 {[%clk 0:02:36]} 12...
f5 {[%clk 0:02:23.5]} 13. Nxc5 {[%clk 0:02:33.2]} 13... Nc6 {[%clk 0:02:08]} 14.
Be2 {[%clk 0:02:26.7]} 14... Qa5+ {[%clk 0:02:03]} 15. Qd2 {[%clk 0:02:26.6]}
15... d6 {[%clk 0:01:59]} 16. Nb3 {[%clk 0:02:21.2]} 16... Qxd2+ {[%clk
0:01:58.2]} 17. Kxd2 {[%clk 0:02:22.1]} 17... Bd7 {[%clk 0:01:56.4]} 18. Bf3
{[%clk 0:02:16.3]} 18... Rac8 {[%clk 0:01:53.2]} 19. Rc3 {[%clk 0:02:13.6]}
19... Rc7 {[%clk 0:01:45.8]} 20. g4 {[%clk 0:02:03.3]} 20... fxg4 {[%clk
0:01:41]} 21. Bxg4 {[%clk 0:02:04.2]} 21... Rfc8 {[%clk 0:01:37.5]} 22. Rhc1
{[%clk 0:02:03.7]} 22... Nb4 {[%clk 0:01:32.9]} 23. Rg1 {[%clk 0:01:51.6]} 23...
Kf8 {[%clk 0:01:28.4]} 24. a3 {[%clk 0:01:42.6]} 24... Nc6 {[%clk 0:01:06.9]}
25. Be2 {[%clk 0:01:32.8]} 25... b6 {[%clk 0:01:01.7]} 26. Rg3 {[%clk
0:01:28.7]} 26... Ne7 {[%clk 0:00:56.5]} 27. Rh3 {[%clk 0:01:27.3]} 27... Kg7
{[%clk 0:00:55.9]} 28. Rc1 {[%clk 0:01:26.9]} 28... Ng6 {[%clk 0:00:55]} 29. Rh5
{[%clk 0:01:22.1]} 29... Ba4 {[%clk 0:00:52.3]} 30. Rb1 {[%clk 0:01:20]} 30...
Bc6 {[%clk 0:00:38.4]} 31. Bd3 {[%clk 0:01:19.1]} 31... f5 {[%clk 0:00:31.5]}
32. d5 {[%clk 0:01:11.8]} 32... exd5 {[%clk 0:00:30.5]} 33. Nd4 {[%clk
0:01:11.9]} 33... Bd7 {[%clk 0:00:29.5]} 34. cxd5 {[%clk 0:01:10.6]} 34... Rc5
{[%clk 0:00:27.2]} 35. Bxf5 {[%clk 0:01:02.4]} 35... Bxf5 {[%clk 0:00:24.3]} 36.
Rxf5 {[%clk 0:01:03.3]} 36... Ne5 {[%clk 0:00:20.3]} 37. Rg1+ {[%clk 0:00:48.7]}
37... Kh7 {[%clk 0:00:20.6]} 38. f4 {[%clk 0:00:44.9]} 38... Nc4+ {[%clk
0:00:13.9]} 39. Ke2 {[%clk 0:00:45.1]} 39... R5c7 {[%clk 0:00:11.4]} 40. Ne6
{[%clk 0:00:38.8]} 40... Re7 {[%clk 0:00:09.5]} 41. a4 {[%clk 0:00:35.7]} 41...
Nb2 {[%clk 0:00:08.4]} 42. Nf8+ {[%clk 0:00:33.9]} 42... Rxf8 {[%clk 0:00:06]}
43. Rxf8 {[%clk 0:00:34.8]} 43... Nxa4 {[%clk 0:00:05.3]} 44. Kf3 {[%clk
0:00:30.3]} 44... Nc5 {[%clk 0:00:04.8]} 45. f5 {[%clk 0:00:28.4]} 45... Ne4
{[%clk 0:00:04.5]} 46. f6 {[%clk 0:00:27.7]} 46... Re5 {[%clk 0:00:04.5]} 47.
Rg7# {[%clk 0:00:27.1]} 1-0

[Event "*** Titled Tuesday Blitz"]
[Site "Chess.com"]
[Date "2021.02.09"]
[Round "2"]
[White "MFBerna"]
[Black "platy3"]
[Result "0-1"]
[WhiteElo "2529"]
[BlackElo "2869"]
[TimeControl "180+1"]
[EndTime "10:18:22 PST"]
[Termination "platy3 won by resignation"]

1. e4 {[%clk 0:02:55.3]} 1... c5 {[%clk 0:02:59.5]} 2. Nf3 {[%clk 0:02:55.1]}
2... e6 {[%clk 0:03:00.2]} 3. d4 {[%clk 0:02:55.5]} 3... cxd4 {[%clk 0:03:01.1]}
4. Nxd4 {[%clk 0:02:54.5]} 4... Nc6 {[%clk 0:03:02]} 5. Nc3 {[%clk 0:02:54.9]}
5... Qc7 {[%clk 0:03:00.9]} 6. Be3 {[%clk 0:02:55.2]} 6... a6 {[%clk 0:03:00.9]}
7. Qf3 {[%clk 0:02:50.4]} 7... Ne5 {[%clk 0:03:00.7]} 8. Qg3 {[%clk 0:02:48.4]}
8... h5 {[%clk 0:03:01.4]} 9. h4 {[%clk 0:02:48.2]} 9... b5 {[%clk 0:02:57.3]}
10. Be2 {[%clk 0:02:31.8]} 10... Bb7 {[%clk 0:02:53.3]} 11. a3 {[%clk
0:02:25.6]} 11... Nf6 {[%clk 0:02:49.7]} 12. O-O {[%clk 0:01:59.1]} 12... Be7
{[%clk 0:02:12.8]} 13. Rad1 {[%clk 0:01:45.1]} 13... Rc8 {[%clk 0:02:09.9]} 14.
Bf4 {[%clk 0:01:19.6]} 14... d6 {[%clk 0:01:59.6]} 15. Rfe1 {[%clk 0:00:50.2]}
15... Qb8 {[%clk 0:01:55.5]} 16. Bf1 {[%clk 0:00:47.6]} 16... Nfg4 {[%clk
0:01:47.7]} 17. f3 {[%clk 0:00:41.2]} 17... Nf6 {[%clk 0:01:45.5]} 18. Rd2
{[%clk 0:00:40.7]} 18... Qa7 {[%clk 0:01:05.1]} 19. Kh1 {[%clk 0:00:38.4]} 19...
Qc5 {[%clk 0:01:04.8]} 20. Red1 {[%clk 0:00:36.8]} 20... O-O {[%clk 0:00:59.1]}
21. Be3 {[%clk 0:00:30.1]} 21... Qc7 {[%clk 0:00:57]} 22. Bg5 {[%clk 0:00:25.3]}
22... Rfe8 {[%clk 0:00:54.7]} 23. Be2 {[%clk 0:00:23.4]} 23... Qc5 {[%clk
0:00:51.8]} 24. Be3 {[%clk 0:00:20.9]} 24... Qc7 {[%clk 0:00:45.4]} 25. Bf1
{[%clk 0:00:20]} 25... Nc4 {[%clk 0:00:34.4]} 26. Bxc4 {[%clk 0:00:19.5]} 26...
Qxc4 {[%clk 0:00:35.3]} 27. Bg5 {[%clk 0:00:17.1]} 27... b4 {[%clk 0:00:20.9]}
28. axb4 {[%clk 0:00:16.9]} 28... Qxb4 {[%clk 0:00:21.8]} 29. Nde2 {[%clk
0:00:13.9]} 29... d5 {[%clk 0:00:18.6]} 30. e5 {[%clk 0:00:09]} 30... Nd7 {[%clk
0:00:18.9]} 31. Nf4 {[%clk 0:00:05.3]} 31... Bxg5 {[%clk 0:00:11.9]} 32. Qxg5
{[%clk 0:00:06.2]} 32... Qe7 {[%clk 0:00:11.7]} 33. Qxh5 {[%clk 0:00:05.4]}
33... Rc4 {[%clk 0:00:11.4]} 34. Nh3 {[%clk 0:00:03.7]} 34... Rxh4 {[%clk
0:00:09.7]} 35. Qxh4 {[%clk 0:00:02.3]} 35... Qxh4 {[%clk 0:00:09.6]} 36. Ne2
{[%clk 0:00:02.5]} 36... Nxe5 {[%clk 0:00:09.5]} 0-1

[Event "*** Titled Tuesday Blitz"]
[Site "Chess.com"]
[Date "2021.02.09"]
[Round "2"]
[White "chessasuke"]
[Black "Susik_Gaboyan"]
[Result "1-0"]
[WhiteElo "2545"]
[BlackElo "2295"]
[TimeControl "180+1"]
[EndTime "10:18:25 PST"]
[Termination "chessasuke won on time"]

1. e4 {[%clk 0:03:00.9]} 1... c5 {[%clk 0:02:53.8]} 2. Nf3 {[%clk 0:02:48.2]}
2... Nc6 {[%clk 0:02:53]} 3. Bb5 {[%clk 0:02:47.6]} 3... g6 {[%clk 0:02:50.8]}
4. Bxc6 {[%clk 0:02:47]} 4... dxc6 {[%clk 0:02:51.7]} 5. O-O {[%clk 0:02:47.3]}
5... Bg4 {[%clk 0:02:50.4]} 6. d3 {[%clk 0:02:46.8]} 6... e5 {[%clk 0:02:49.1]}
7. Nbd2 {[%clk 0:02:47.1]} 7... f6 {[%clk 0:02:30.1]} 8. h3 {[%clk 0:02:46.8]}
8... Bxf3 {[%clk 0:02:29.7]} 9. Qxf3 {[%clk 0:02:46.3]} 9... Nh6 {[%clk
0:02:12.1]} 10. a4 {[%clk 0:02:43.5]} 10... Nf7 {[%clk 0:02:07.4]} 11. a5 {[%clk
0:02:43.4]} 11... h5 {[%clk 0:02:04.5]} 12. Nc4 {[%clk 0:02:41.8]} 12... g5
{[%clk 0:01:39.9]} 13. Qf5 {[%clk 0:02:32]} 13... Be7 {[%clk 0:01:35.5]} 14. Be3
{[%clk 0:02:25.3]} 14... Qd7 {[%clk 0:01:31.7]} 15. Qxd7+ {[%clk 0:02:22.9]}
15... Kxd7 {[%clk 0:01:32.6]} 16. f3 {[%clk 0:02:21.4]} 16... Rag8 {[%clk
0:01:31]} 17. g4 {[%clk 0:02:20]} 17... hxg4 {[%clk 0:01:28.5]} 18. hxg4 {[%clk
0:02:20.9]} 18... Rh3 {[%clk 0:01:24.1]} 19. Kg2 {[%clk 0:02:21.2]} 19... Rgh8
{[%clk 0:01:24.7]} 20. Rh1 {[%clk 0:02:21.4]} 20... Rxh1 {[%clk 0:01:25.4]} 21.
Rxh1 {[%clk 0:02:21.8]} 21... Rxh1 {[%clk 0:01:26.1]} 22. Kxh1 {[%clk
0:02:22.7]} 22... Nd8 {[%clk 0:01:26.3]} 23. Kg2 {[%clk 0:02:22.7]} 23... Ne6
{[%clk 0:01:26.9]} 24. Kf1 {[%clk 0:02:22.8]} 24... Kc7 {[%clk 0:01:19.3]} 25.
c3 {[%clk 0:02:22.3]} 25... b5 {[%clk 0:01:13.4]} 26. axb6+ {[%clk 0:02:22.2]}
26... axb6 {[%clk 0:01:14.3]} 27. Nd2 {[%clk 0:02:22.2]} 27... b5 {[%clk
0:00:51]} 28. Ke2 {[%clk 0:02:21]} 28... Kb6 {[%clk 0:00:44.1]} 29. Nf1 {[%clk
0:02:21]} 29... Ka5 {[%clk 0:00:43.7]} 30. Kd2 {[%clk 0:02:21]} 30... c4 {[%clk
0:00:40.6]} 31. Ng3 {[%clk 0:02:11.9]} 31... cxd3 {[%clk 0:00:37.5]} 32. Kxd3
{[%clk 0:02:11.9]} 32... Ka4 {[%clk 0:00:24.4]} 33. Kc2 {[%clk 0:02:11.4]} 33...
Bc5 {[%clk 0:00:23.8]} 34. b3+ {[%clk 0:01:57.6]} 34... Ka3 {[%clk 0:00:23.4]}
35. Bc1+ {[%clk 0:01:57.7]} 35... Ka2 {[%clk 0:00:23.4]} 36. Nh5 {[%clk
0:01:53.9]} 36... Be7 {[%clk 0:00:19.8]} 37. Ng3 {[%clk 0:01:51.4]} 37... Nc5
{[%clk 0:00:19.5]} 38. b4 {[%clk 0:01:51.1]} 38... Nb3 {[%clk 0:00:15.1]} 39.
Bb2 {[%clk 0:01:49.8]} 39... Na1+ {[%clk 0:00:11.7]} 40. Bxa1 {[%clk 0:01:49.1]}
40... Kxa1 {[%clk 0:00:12.6]} 41. Nf5 {[%clk 0:01:49.1]} 41... Bd8 {[%clk
0:00:11.6]} 42. Kb3 {[%clk 0:01:47.7]} 42... Kb1 {[%clk 0:00:11.7]} 43. c4
{[%clk 0:01:47.3]} 43... Kc1 {[%clk 0:00:08.6]} 44. Kc3 {[%clk 0:01:41.3]} 44...
Kd1 {[%clk 0:00:07.1]} 45. Nd6 {[%clk 0:01:23.7]} 45... Ke2 {[%clk 0:00:05.3]}
46. c5 {[%clk 0:01:08.5]} 46... Kxf3 {[%clk 0:00:04.3]} 47. Nb7 {[%clk
0:01:07.5]} 47... Bc7 {[%clk 0:00:03.6]} 48. Na5 {[%clk 0:01:06.3]} 48... Kxg4
{[%clk 0:00:02.6]} 49. Nxc6 {[%clk 0:01:06.6]} 49... Kf3 {[%clk 0:00:03.2]} 50.
Na7 {[%clk 0:00:59.6]} 50... g4 {[%clk 0:00:03.6]} 51. Nxb5 {[%clk 0:01:00.5]}
51... Bb8 {[%clk 0:00:01.8]} 52. Kd3 {[%clk 0:00:50.7]} 52... g3 {[%clk
0:00:02.2]} 53. Nc3 {[%clk 0:00:51.6]} 53... g2 {[%clk 0:00:02.6]} 54. Ne2
{[%clk 0:00:52.5]} 54... Kf2 {[%clk 0:00:02.7]} 55. b5 {[%clk 0:00:52.4]} 1-0

[Event "*** Titled Tuesday Blitz"]
[Site "Chess.com"]
[Date "2021.02.09"]
[Round "2"]
[White "amintabatabaei"]
[Black "gross-aleks"]
[Result "1-0"]
[WhiteElo "2945"]
[BlackElo "2561"]
[TimeControl "180+1"]
[EndTime "10:18:26 PST"]
[Termination "amintabatabaei won by checkmate"]

1. d4 {[%clk 0:03:00.9]} 1... Nf6 {[%clk 0:02:59.1]} 2. Nf3 {[%clk 0:03:01.5]}
2... e6 {[%clk 0:02:59]} 3. Bf4 {[%clk 0:03:02]} 3... b6 {[%clk 0:02:58.9]} 4.
e3 {[%clk 0:03:02.5]} 4... Bb7 {[%clk 0:02:59]} 5. h3 {[%clk 0:03:02.8]} 5... c5
{[%clk 0:02:51.9]} 6. c3 {[%clk 0:03:01.1]} 6... Nc6 {[%clk 0:02:48.3]} 7. Nbd2
{[%clk 0:03:00.5]} 7... d5 {[%clk 0:02:48]} 8. Bb5 {[%clk 0:02:57.4]} 8... a6
{[%clk 0:02:47.3]} 9. Bd3 {[%clk 0:02:55]} 9... Bd6 {[%clk 0:02:45.7]} 10. Ne5
{[%clk 0:02:51.1]} 10... Qc7 {[%clk 0:02:40.2]} 11. Ndf3 {[%clk 0:02:43.2]}
11... Rd8 {[%clk 0:02:36.3]} 12. Qe2 {[%clk 0:02:38]} 12... b5 {[%clk
0:02:31.1]} 13. Nxc6 {[%clk 0:02:25.9]} 13... Bxc6 {[%clk 0:02:18.4]} 14. dxc5
{[%clk 0:02:18.7]} 14... Bxf4 {[%clk 0:02:16.6]} 15. exf4 {[%clk 0:02:19.6]}
15... Qxf4 {[%clk 0:02:07.2]} 16. Qe5 {[%clk 0:02:00.6]} 16... Qxe5+ {[%clk
0:00:48.9]} 17. Nxe5 {[%clk 0:02:01.5]} 17... Ba8 {[%clk 0:00:19.9]} 18. a4
{[%clk 0:02:01.2]} 18... bxa4 {[%clk 0:00:19.8]} 19. Rxa4 {[%clk 0:01:57.1]}
19... O-O {[%clk 0:00:20.7]} 20. Rxa6 {[%clk 0:01:54.7]} 20... d4 {[%clk
0:00:18.7]} 21. c4 {[%clk 0:01:52.5]} 21... Bxg2 {[%clk 0:00:17.5]} 22. Rg1
{[%clk 0:01:53]} 22... Bxh3 {[%clk 0:00:17.6]} 23. b4 {[%clk 0:01:52.6]} 23...
Bf5 {[%clk 0:00:17.9]} 24. c6 {[%clk 0:01:49]} 24... Bxd3 {[%clk 0:00:17.2]} 25.
Nxd3 {[%clk 0:01:49.9]} 25... Ne4 {[%clk 0:00:17.2]} 26. b5 {[%clk 0:01:48]}
26... Rc8 {[%clk 0:00:16.8]} 27. Ne5 {[%clk 0:01:03.7]} 27... Rfd8 {[%clk
0:00:13.5]} 28. b6 {[%clk 0:00:58.7]} 28... f6 {[%clk 0:00:13.8]} 29. c7 {[%clk
0:00:53.1]} 29... fxe5 {[%clk 0:00:13.6]} 30. cxd8=Q+ {[%clk 0:00:52]} 30...
Rxd8 {[%clk 0:00:14.5]} 31. Ra5 {[%clk 0:00:23.3]} 31... Rb8 {[%clk 0:00:13.7]}
32. c5 {[%clk 0:00:20.1]} 32... d3 {[%clk 0:00:13.1]} 33. f3 {[%clk 0:00:19.6]}
33... d2+ {[%clk 0:00:11.2]} 34. Ke2 {[%clk 0:00:19.7]} 34... Nxc5 {[%clk
0:00:11.1]} 35. Rxc5 {[%clk 0:00:19.4]} 35... Rxb6 {[%clk 0:00:12]} 36. Rc7
{[%clk 0:00:19.5]} 36... Rd6 {[%clk 0:00:11.2]} 37. Rgxg7+ {[%clk 0:00:17.2]}
37... Kf8 {[%clk 0:00:11.6]} 38. Kd1 {[%clk 0:00:17.3]} 38... h5 {[%clk
0:00:11.6]} 39. Rh7 {[%clk 0:00:16.9]} 39... Rd3 {[%clk 0:00:11.8]} 40. Rh8#
{[%clk 0:00:16.7]} 1-0

[Event "*** Titled Tuesday Blitz"]
[Site "Chess.com"]
[Date "2021.02.09"]
[Round "2"]
[White "Nachsueb"]
[Black "Problematique_99"]
[Result "1-0"]
[WhiteElo "2186"]
[BlackElo "2464"]
[TimeControl "180+1"]
[EndTime "10:18:26 PST"]
[Termination "Nachsueb won on time"]

1. d4 {[%clk 0:03:00.9]} 1... Nf6 {[%clk 0:02:59.7]} 2. c4 {[%clk 0:02:59.7]}
2... e6 {[%clk 0:03:00.2]} 3. Nc3 {[%clk 0:02:59.9]} 3... Bb4 {[%clk 0:02:59.9]}
4. e3 {[%clk 0:03:00.4]} 4... O-O {[%clk 0:03:00.1]} 5. Bd3 {[%clk 0:02:59.6]}
5... d5 {[%clk 0:03:00.6]} 6. Ne2 {[%clk 0:02:59.6]} 6... c5 {[%clk 0:03:01.2]}
7. O-O {[%clk 0:02:59]} 7... Nc6 {[%clk 0:03:00.6]} 8. a3 {[%clk 0:02:57.9]}
8... dxc4 {[%clk 0:03:00.3]} 9. Bxc4 {[%clk 0:02:54.5]} 9... Bxc3 {[%clk
0:03:00.4]} 10. bxc3 {[%clk 0:02:55.4]} 10... Qc7 {[%clk 0:02:58.4]} 11. Ba2
{[%clk 0:02:49.6]} 11... b6 {[%clk 0:02:55.7]} 12. Ng3 {[%clk 0:02:47.6]} 12...
Bb7 {[%clk 0:02:53.6]} 13. f3 {[%clk 0:02:42.2]} 13... Rad8 {[%clk 0:02:44.8]}
14. Qe2 {[%clk 0:02:36.8]} 14... e5 {[%clk 0:02:42.8]} 15. Bb2 {[%clk
0:02:27.3]} 15... exd4 {[%clk 0:02:35.6]} 16. cxd4 {[%clk 0:02:28.2]} 16... cxd4
{[%clk 0:02:36]} 17. Rac1 {[%clk 0:02:21.9]} 17... Rfe8 {[%clk 0:02:25.8]} 18.
e4 {[%clk 0:02:20.5]} 18... Qf4 {[%clk 0:02:10.5]} 19. Rcd1 {[%clk 0:02:02.8]}
19... h5 {[%clk 0:01:43.2]} 20. Bc1 {[%clk 0:02:01.3]} 20... Qe5 {[%clk
0:01:38.3]} 21. Qd3 {[%clk 0:01:55]} 21... Qa5 {[%clk 0:01:33.1]} 22. Rfe1
{[%clk 0:01:45.8]} 22... Ba6 {[%clk 0:01:31.3]} 23. Qb3 {[%clk 0:01:45.8]} 23...
Ne5 {[%clk 0:01:29.2]} 24. Bd2 {[%clk 0:01:35.7]} 24... Qb5 {[%clk 0:01:29.2]}
25. Bb4 {[%clk 0:01:25]} 25... h4 {[%clk 0:01:12.7]} 26. Nf5 {[%clk 0:01:21.4]}
26... h3 {[%clk 0:01:12.8]} 27. Nd6 {[%clk 0:01:13.2]} 27... Rxd6 {[%clk
0:00:40.5]} 28. Bxd6 {[%clk 0:01:14.1]} 28... Qxb3 {[%clk 0:00:35.2]} 29. Bxb3
{[%clk 0:01:15]} 29... hxg2 {[%clk 0:00:34.5]} 30. Bxe5 {[%clk 0:01:14.8]} 30...
Rxe5 {[%clk 0:00:33.5]} 31. Kxg2 {[%clk 0:01:13.5]} 31... d3 {[%clk 0:00:31.5]}
32. Rd2 {[%clk 0:01:08.7]} 32... Nh5 {[%clk 0:00:28.7]} 33. Rc1 {[%clk 0:01:04]}
33... Rg5+ {[%clk 0:00:28.1]} 34. Kf2 {[%clk 0:01:02.5]} 34... Nf4 {[%clk
0:00:26.5]} 35. Bc4 {[%clk 0:00:53.5]} 35... Rc5 {[%clk 0:00:10.1]} 36. Bxa6
{[%clk 0:00:53.3]} 36... Rxc1 {[%clk 0:00:10.1]} 37. Bxd3 {[%clk 0:00:53.5]}
37... Rc3 {[%clk 0:00:09.4]} 38. Ke3 {[%clk 0:00:49.4]} 38... Ne6 {[%clk
0:00:09.2]} 39. a4 {[%clk 0:00:44.9]} 39... Nc5 {[%clk 0:00:09.4]} 40. Kd4
{[%clk 0:00:43.4]} 40... Nxa4 {[%clk 0:00:03.2]} 41. Ra2 {[%clk 0:00:40.5]} 1-0

[Event "*** Titled Tuesday Blitz"]
[Site "Chess.com"]
[Date "2021.02.09"]
[Round "2"]
[White "SophieNikoladze"]
[Black "amatatanav"]
[Result "0-1"]
[WhiteElo "2197"]
[BlackElo "2429"]
[TimeControl "180+1"]
[EndTime "10:18:27 PST"]
[Termination "amatatanav won on time"]

1. d4 {[%clk 0:01:13.7]} 1... Nf6 {[%clk 0:02:54.8]} 2. Nf3 {[%clk 0:01:14.2]}
2... e6 {[%clk 0:02:54.4]} 3. e3 {[%clk 0:01:14.4]} 3... d5 {[%clk 0:02:51.5]}
4. Bd3 {[%clk 0:01:14.7]} 4... Be7 {[%clk 0:02:51.3]} 5. b3 {[%clk 0:01:14.8]}
5... O-O {[%clk 0:02:50.8]} 6. Nbd2 {[%clk 0:01:15.2]} 6... b6 {[%clk
0:02:32.4]} 7. Bb2 {[%clk 0:01:06.6]} 7... c5 {[%clk 0:02:31.9]} 8. O-O {[%clk
0:01:05.7]} 8... Nbd7 {[%clk 0:02:27.4]} 9. Ne5 {[%clk 0:01:05.7]} 9... Nxe5
{[%clk 0:02:10.5]} 10. dxe5 {[%clk 0:01:05.1]} 10... Nd7 {[%clk 0:02:10.2]} 11.
f4 {[%clk 0:01:04.6]} 11... g6 {[%clk 0:02:02.6]} 12. Rf3 {[%clk 0:01:03.7]}
12... Re8 {[%clk 0:01:59]} 13. Rh3 {[%clk 0:00:51.2]} 13... Bf8 {[%clk
0:01:55.1]} 14. Qg4 {[%clk 0:00:50.6]} 14... Bg7 {[%clk 0:01:51.6]} 15. e4
{[%clk 0:00:48.6]} 15... Bb7 {[%clk 0:01:39.8]} 16. exd5 {[%clk 0:00:47.6]}
16... exd5 {[%clk 0:01:18.1]} 17. Nf3 {[%clk 0:00:47.4]} 17... d4 {[%clk
0:00:53.4]} 18. Ng5 {[%clk 0:00:48.2]} 18... Nf8 {[%clk 0:00:49.7]} 19. e6
{[%clk 0:00:38.1]} 19... Rxe6 {[%clk 0:00:30.3]} 20. Nxe6 {[%clk 0:00:37.4]}
20... Nxe6 {[%clk 0:00:31.1]} 21. f5 {[%clk 0:00:36.4]} 21... Nf8 {[%clk
0:00:30]} 22. fxg6 {[%clk 0:00:35.9]} 22... hxg6 {[%clk 0:00:29.4]} 23. Bc1
{[%clk 0:00:35.9]} 23... Bc8 {[%clk 0:00:28.1]} 24. Qe4 {[%clk 0:00:32.6]} 24...
Bxh3 {[%clk 0:00:27.6]} 25. gxh3 {[%clk 0:00:32.9]} 25... Qe8 {[%clk 0:00:27.5]}
26. Bf4 {[%clk 0:00:31.9]} 26... Qxe4 {[%clk 0:00:27]} 27. Bxe4 {[%clk
0:00:32.3]} 27... Re8 {[%clk 0:00:26.7]} 28. Bd3 {[%clk 0:00:32.3]} 28... Ne6
{[%clk 0:00:24.5]} 29. Bg3 {[%clk 0:00:31.1]} 29... Ng5 {[%clk 0:00:24.2]} 30.
h4 {[%clk 0:00:30.5]} 30... Nf3+ {[%clk 0:00:24]} 31. Kg2 {[%clk 0:00:30.8]}
31... Ne5 {[%clk 0:00:18.9]} 32. Re1 {[%clk 0:00:30.6]} 32... Kf8 {[%clk
0:00:18.7]} 33. Bb5 {[%clk 0:00:30.5]} 33... Re6 {[%clk 0:00:18]} 34. Bf4 {[%clk
0:00:29.1]} 34... Ke7 {[%clk 0:00:14.5]} 35. Kg3 {[%clk 0:00:28.7]} 35... Bf6
{[%clk 0:00:14.2]} 36. h3 {[%clk 0:00:27.8]} 36... Bxh4+ {[%clk 0:00:14]} 37.
Kxh4 {[%clk 0:00:25.7]} 37... Nf3+ {[%clk 0:00:14.6]} 38. Kg4 {[%clk 0:00:24.8]}
38... Nxe1 {[%clk 0:00:15]} 0-1

[Event "*** Titled Tuesday Blitz"]
[Site "Chess.com"]
[Date "2021.02.09"]
[Round "2"]
[White "Funo09"]
[Black "Atco84"]
[Result "1/2-1/2"]
[WhiteElo "2779"]
[BlackElo "2508"]
[TimeControl "180+1"]
[EndTime "10:18:30 PST"]
[Termination "Game drawn by repetition"]

1. e4 {[%clk 0:03:00.9]} 1... c5 {[%clk 0:02:59.2]} 2. Nc3 {[%clk 0:03:00.4]}
2... d6 {[%clk 0:02:59.2]} 3. Nf3 {[%clk 0:03:00.3]} 3... Nf6 {[%clk 0:02:57.8]}
4. d4 {[%clk 0:03:00.7]} 4... cxd4 {[%clk 0:02:57.9]} 5. Nxd4 {[%clk 0:03:01.6]}
5... a6 {[%clk 0:02:58.3]} 6. a3 {[%clk 0:02:59.9]} 6... e6 {[%clk 0:02:50.3]}
7. Bc4 {[%clk 0:02:56.6]} 7... b5 {[%clk 0:02:40.9]} 8. Ba2 {[%clk 0:02:56.6]}
8... Be7 {[%clk 0:02:37.5]} 9. O-O {[%clk 0:02:55.6]} 9... O-O {[%clk
0:02:36.7]} 10. Qf3 {[%clk 0:02:52.1]} 10... Ra7 {[%clk 0:02:36.3]} 11. Be3
{[%clk 0:02:50.2]} 11... Rd7 {[%clk 0:02:23.5]} 12. Qh3 {[%clk 0:02:25.8]} 12...
Bb7 {[%clk 0:02:18]} 13. f3 {[%clk 0:02:24]} 13... Nc6 {[%clk 0:02:08.3]} 14.
Rad1 {[%clk 0:02:22.1]} 14... d5 {[%clk 0:01:53.9]} 15. Nxe6 {[%clk 0:01:04.6]}
15... fxe6 {[%clk 0:01:48.1]} 16. Qxe6+ {[%clk 0:01:05.5]} 16... Kh8 {[%clk
0:01:47.9]} 17. exd5 {[%clk 0:01:06.4]} 17... Nb8 {[%clk 0:00:53.3]} 18. Bb6
{[%clk 0:01:05.4]} 18... Qc8 {[%clk 0:00:44.3]} 19. d6 {[%clk 0:01:02.5]} 19...
Bd8 {[%clk 0:00:42.5]} 20. Bf2 {[%clk 0:00:58.7]} 20... Re8 {[%clk 0:00:22.2]}
21. Qf5 {[%clk 0:00:55.7]} 21... Ba5 {[%clk 0:00:22.7]} 22. Be6 {[%clk
0:00:29.1]} 22... Bxc3 {[%clk 0:00:16.4]} 23. bxc3 {[%clk 0:00:30]} 23... Qxc3
{[%clk 0:00:16.4]} 24. Bd4 {[%clk 0:00:30.6]} 24... Qxa3 {[%clk 0:00:07.2]} 25.
Bxd7 {[%clk 0:00:04.9]} 25... Nbxd7 {[%clk 0:00:06.4]} 26. Rd3 {[%clk 0:00:05]}
26... Qb4 {[%clk 0:00:05]} 27. Bxf6 {[%clk 0:00:02.9]} 27... Nxf6 {[%clk
0:00:04.2]} 28. d7 {[%clk 0:00:03.8]} 28... Rd8 {[%clk 0:00:04.1]} 29. Rfd1
{[%clk 0:00:04.3]} 29... Bc6 {[%clk 0:00:03.3]} 30. Kh1 {[%clk 0:00:04.1]} 30...
h6 {[%clk 0:00:02.8]} 31. h3 {[%clk 0:00:04.6]} 31... Rxd7 {[%clk 0:00:03.2]}
32. Rxd7 {[%clk 0:00:04.5]} 32... Bxd7 {[%clk 0:00:03.9]} 33. Rxd7 {[%clk
0:00:05.1]} 33... Nxd7 {[%clk 0:00:04.5]} 34. Qxd7 {[%clk 0:00:06]} 34... a5
{[%clk 0:00:04.9]} 35. Qd8+ {[%clk 0:00:05.7]} 35... Kh7 {[%clk 0:00:05.8]} 36.
Qd3+ {[%clk 0:00:06.6]} 36... Kh8 {[%clk 0:00:04.5]} 37. Qd8+ {[%clk 0:00:06.9]}
37... Kh7 {[%clk 0:00:04.3]} 38. Qd3+ {[%clk 0:00:07.8]} 38... Kh8 {[%clk
0:00:04.8]} 39. Qd8+ {[%clk 0:00:06.1]} 1/2-1/2